bitfinex-derivatives/quotes_BNBF0:USTF0_20251203
["timestamp","ask_amount","ask_price","bid_price","bid_amount"]
[1764735105336,67.72753124,890.84,889.81,0.8370423]
[1764735105737,0.19543315,890.59,889.81,0.8370423]
[1764735106340,0.19543315,890.59,889.8,0.8370423]
[1764735107342,0.19543315,890.59,889.79,0.8370423]
[1764735108237,0.19543315,890.59,889.78,0.8370423]
[1764735108741,0.19543315,890.59,889.62,1.12214372]
[1764735108742,0.19543315,890.59,889.74,0.8370423]
[1764735109337,0.19543315,890.59,889.73,0.8370423]
[1764735110042,0.19543315,890.59,889.7,0.8370423]
[1764735110540,0.19543315,890.59,889.58,0.8370423]
[1764735113151,0.19543315,890.59,889.59,0.8370423]
[1764735115551,0.19543315,890.59,889.58,0.8370423]
[1764735117554,0.19543315,890.59,889.52,0.8370423]
[1764735117952,0.19543315,890.59,889.51,0.8370423]
[1764735118153,0.19543315,890.59,889.52,0.8370423]
[1764735118354,0.19543315,890.59,889.53,0.8370423]
[1764735120454,0.19543315,890.59,889.54,0.8370423]
[1764735121356,0.19543315,890.59,889.53,0.8370423]
[1764735122457,0.19543315,890.59,889.54,0.8370423]
[1764735123254,0.19543315,890.59,889.22,1.67885643]
[1764735123255,0.19543315,890.59,889.55,0.8370423]
[1764735123657,0.19543315,890.59,889.57,0.8370423]
[1764735123854,0.19543315,890.59,889.61,0.8370423]
[1764735124054,0.19543315,890.59,889.7,0.8370423]
[1764735126154,0.19543315,890.59,889.72,0.8370423]
[1764735126756,0.19543315,890.59,889.71,0.8370423]
[1764735127459,0.19543315,890.59,889.72,0.8370423]
[1764735127856,0.19543315,890.59,889.71,0.8370423]
[1764735128060,0.19543315,890.59,889.7,0.8370423]
[1764735128755,0.19543315,890.59,889.62,0.8370423]
[1764735129255,0.19543315,890.59,889.63,0.8370423]
[1764735129460,0.19543315,890.59,889.6,0.8370423]
[1764735129757,0.19543315,890.59,889.61,0.8370423]
[1764735130261,0.19543315,890.59,889.62,0.8370423]
[1764735131262,0.19543315,890.59,889.64,0.8370423]
[1764735131462,0.19543315,890.59,889.67,0.8370423]
[1764735132359,0.19543315,890.59,889.68,0.8370423]
[1764735133265,0.19543315,890.59,889.69,0.8370423]
[1764735134460,0.19543315,890.59,889.7,0.8370423]
[1764735135264,0.19543315,890.59,889.71,0.8370423]
[1764735136264,0.19543315,890.59,889.57,1.167]
[1764735136265,0.19543315,890.59,889.72,0.8370423]
[1764735137165,0.19543315,890.59,889.74,0.8370423]
[1764735137462,0.19543315,890.59,889.58,1.12214372]
[1764735137463,0.19543315,890.59,889.75,0.8370423]
[1764735138165,0.19543315,890.59,889.76,0.8370423]
[1764735139267,0.19543315,890.59,889.77,0.8370423]
[1764735139467,0.19543315,890.59,889.79,0.8370423]
[1764735140165,0.19543315,890.59,889.8,0.8370423]
[1764735141266,0.19543315,890.59,889.81,0.8370423]
[1764735141766,0.19543315,890.59,889.8,0.8370423]
[1764735142168,0.19543315,890.59,889.79,0.8370423]
[1764735142468,0.19543315,890.59,889.78,0.8370423]
[1764735143264,0.19543315,890.59,889.79,0.8370423]
[1764735143469,0.19543315,890.59,889.57,1.167]
[1764735143470,0.19543315,890.59,889.8,0.8370423]
[1764735143971,0.19543315,890.59,889.82,0.8370423]
[1764735144169,0.19543315,890.59,889.57,1.167]
[1764735144170,0.19543315,890.59,889.89,0.8370423]
[1764735145271,0.19543315,890.59,889.9,0.8370423]
[1764735145470,0.19543315,890.59,889.97,0.8370423]
[1764735149974,0.19543315,890.59,889.98,0.8370423]
[1764735151173,0.19543315,890.59,889.99,0.8370423]
[1764735158282,0.19543315,890.59,889.98,0.8370423]
[1764735178300,0.19543315,890.59,889.99,0.8370423]
[1764735178699,0.19543315,890.59,889.98,0.8370423]
[1764735180402,0.19543315,890.59,889.99,1.103]
[1764735181301,0.19543315,890.59,889.99,1.9400423]
[1764735182103,0.19543315,890.59,890.02,0.8370423]
[1764735182299,0.19543315,890.59,890.03,0.8370423]
[1764735184904,0.19543315,890.59,890.03,1.7450423]
[1764735187001,0.19543315,890.59,890.05,0.8370423]
[1764735190406,0.19543315,890.59,890.06,0.8370423]
[1764735193204,0.19543315,890.59,890.07,0.8370423]
[1764735195308,0.19543315,890.59,890.08,0.8370423]
[1764735197109,0.19543315,890.59,890.12,0.8370423]
[1764735197311,0.19543315,890.59,890.13,0.8370423]
[1764735199306,0.19543315,890.59,890.14,0.8370423]
[1764735201015,0.19543315,890.59,890.15,1.162]
[1764735201206,0.19543315,890.59,890.15,1.9990423]
[1764735201407,0.19543315,890.59,890.22,0.8370423]
[1764735202210,0.19543315,890.59,890.23,0.8370423]
[1764735202413,0.19543315,890.59,890.24,0.8370423]
[1764735204313,0.19543315,890.59,890.23,0.8370423]
[1764735206215,0.19543315,890.59,890.22,0.8370423]
[1764735209314,0.19543315,890.59,890.21,0.8370423]
[1764735210219,0.19543315,890.59,890.22,0.8370423]
[1764735210618,0.19543315,890.59,890.28,0.8370423]
[1764735211213,0.19543315,890.59,890.27,0.8370423]
[1764735211419,0.19543315,890.59,890.3,0.8370423]
[1764735212219,0.19543315,890.59,890.29,0.8370423]
[1764735213323,0.83869872,890.99,890.28,0.8370423]
[1764735213515,0.19536184,890.7,890.28,0.8370423]
[1764735213718,0.83869872,890.99,890.28,0.8370423]
[1764735213921,0.19536184,890.7,890.28,0.8370423]
[1764735214122,0.83869872,890.99,890.28,0.8370423]
[1764735214321,0.83869872,891.0,890.28,0.8370423]
[1764735215220,0.83869872,891.0,890.27,0.8370423]
[1764735215421,0.19536129,890.83,890.28,0.8370423]
[1764735217322,0.19536129,890.83,890.29,1.066]
[1764735225427,0.19536129,890.83,890.3,0.869]
[1764735250245,0.19536129,890.83,890.3,1.7060423]
[1764735251545,0.19536129,890.83,890.31,0.832]
[1764735253345,0.19536129,890.83,890.31,1.6690423]
[1764735255247,0.19536129,890.83,890.32,0.8370423]
[1764735257344,0.19536129,890.83,890.33,0.8370423]
[1764735259250,0.19536129,890.83,890.31,0.832]
[1764735262545,0.84070498,890.82,890.31,0.832]
[1764735264352,1.03606627,890.83,890.31,0.832]
[1764735265148,0.84070498,890.8,890.31,0.832]
[1764735265748,0.84070498,890.82,890.31,0.832]
[1764735266048,0.84070498,890.81,890.3,0.869]
[1764735266348,0.84070498,890.82,890.3,0.869]
[1764735267754,0.19536129,890.83,890.3,0.869]
[1764735267953,0.8407228,890.81,890.3,0.869]
[1764735268455,0.8407228,890.82,890.3,0.869]
[1764735268752,0.8407228,890.82,890.31,1.074]
[1764735269858,0.8407228,890.81,890.31,1.074]
[1764735270255,0.8407228,890.82,890.31,1.074]
[1764735271354,1.03608409,890.83,890.31,1.074]
[1764735271559,0.8407228,890.82,890.31,1.074]
[1764735273455,1.03608409,890.83,890.31,1.074]
[1764735273959,0.8407228,890.82,890.31,1.074]
[1764735274258,0.8407228,890.8,890.31,1.074]
[1764735275360,0.8407228,890.81,890.31,1.074]
[1764735276456,0.8407228,890.8,890.31,1.074]
[1764735276656,0.8407228,890.81,890.31,1.074]
[1764735277158,0.19536129,890.83,890.31,1.074]
[1764735279157,0.19536129,890.83,890.32,1.026]
[1764735286566,0.8407228,890.82,890.32,1.026]
[1764735287865,0.19536129,890.83,890.32,1.026]
[1764735305289,0.8407228,890.8,890.32,1.026]
[1764735305484,0.8407228,890.8,890.33,1.225]
[1764735305688,0.19536129,890.83,890.33,1.225]
[1764735305689,0.8407228,890.76,890.33,1.225]
[1764735309992,0.8407228,890.71,890.33,1.225]
[1764735310190,0.8407228,890.69,890.33,1.225]
[1764735311191,0.8407228,890.7,890.33,1.225]
[1764735311491,0.8407228,890.69,890.33,1.225]
[1764735312088,0.8407228,890.7,890.33,1.225]
[1764735312287,0.8407228,890.69,890.33,1.225]
[1764735312489,0.8407228,890.68,890.33,1.225]
[1764735312689,0.8407228,890.66,890.33,1.225]
[1764735314294,0.8407228,890.61,890.33,1.225]
[1764735315094,0.8407228,890.62,890.33,1.225]
[1764735315393,0.8407228,890.61,890.33,1.225]
[1764735315792,0.8407228,890.62,890.33,1.225]
[1764735319093,0.8407228,890.63,890.33,1.225]
[1764735322097,0.8407228,890.64,890.33,1.225]
[1764735322498,1.12133249,890.8,890.33,1.225]
[1764735322698,0.84021826,890.64,890.33,1.225]
[1764735322898,0.84021826,890.64,890.31,1.085]
[1764735324199,0.84021826,890.65,890.31,1.085]
[1764735324899,0.84021826,890.66,890.31,1.085]
[1764735329098,0.84021826,890.67,890.31,1.085]
[1764735330602,1.31669378,890.83,890.31,1.085]
[1764735330603,0.84021826,890.66,890.31,1.085]
[1764735331400,0.84021826,890.67,890.31,1.085]
[1764735334106,0.84021826,890.68,890.31,1.085]
[1764735334906,0.84021826,890.7,890.31,1.085]
[1764735335706,0.84021826,890.76,890.31,1.085]
[1764735341914,0.84021826,890.75,890.31,1.085]
[1764735349117,0.84021826,890.74,890.31,1.085]
[1764735349317,0.84021826,890.7,890.31,1.085]
[1764735350118,0.84021826,890.69,890.31,1.085]
[1764735351623,0.84021826,890.77,890.31,1.085]
[1764735352420,1.03557955,890.83,890.31,1.085]
[1764735352624,0.19536129,890.83,890.31,1.085]
[1764735353726,0.19536129,890.83,890.1,0.83847084]
[1764735357328,0.19536129,890.83,890.11,0.83847084]
[1764735357932,0.19536129,890.83,890.12,0.83847084]
[1764735360937,0.19536129,890.83,890.13,0.83847084]
[1764735363039,0.19536129,890.83,890.21,0.83847084]
[1764735364038,0.19536129,890.83,890.22,0.83847084]
[1764735364534,0.19536129,890.83,890.21,0.83847084]
[1764735366439,0.19536129,890.83,890.2,0.83847084]
[1764735367336,0.19536129,890.83,890.19,0.83847084]
[1764735368338,0.19536129,890.83,890.18,0.83847084]
[1764735368838,0.19536129,890.83,890.12,0.83847084]
[1764735371245,0.19536129,890.83,890.11,0.83847084]
[1764735378254,0.84021826,890.77,890.0,0.83847084]
[1764735381451,0.84021826,890.78,890.01,0.83847084]
[1764735381851,0.84021826,890.82,890.05,0.83847084]
[1764735382357,0.84021826,890.81,890.06,0.83847084]
[1764735383358,0.19536129,890.83,889.96,0.953]
[1764735383559,0.83985501,890.81,890.06,0.83700991]
[1764735386362,0.83985501,890.8,890.07,0.83700991]
[1764735389063,0.83985501,890.8,890.08,0.83700991]
[1764735389269,0.19536129,890.83,890.17,0.83700991]
[1764735390268,0.19536129,890.83,890.19,0.83700991]
[1764735390464,0.19536129,890.83,890.18,0.83700991]
[1764735390665,0.19536129,890.83,890.19,0.83700991]
[1764735393273,0.19536129,890.83,890.14,0.83700991]
[1764735393469,0.83985501,890.82,890.11,0.83700991]
[1764735394073,0.83985501,890.82,890.12,0.83700991]
[1764735395074,0.83985501,890.8,890.1,0.83700991]
[1764735395971,0.83985501,890.79,890.1,0.83700991]
[1764735397476,0.83985501,890.78,890.1,0.83700991]
[1764735398579,0.83985501,890.79,890.1,0.83700991]
[1764735398773,0.83985501,890.78,890.1,0.83700991]
[1764735401077,0.83985501,890.77,890.1,0.83700991]
[1764735401279,0.83985501,890.72,890.04,0.83700991]
[1764735401479,0.83985501,890.71,890.04,0.83700991]
[1764735401680,0.83985501,890.72,890.04,0.83700991]
[1764735401980,0.83985501,890.72,890.05,0.83700991]
[1764735410182,0.83985501,890.71,890.05,0.83700991]
[1764735410681,0.83985501,890.73,890.07,0.83700991]
[1764735410882,0.83985501,890.76,890.1,0.83700991]
[1764735411081,0.83985501,890.76,889.96,0.953]
[1764735411082,0.83985501,890.79,890.13,0.83700991]
[1764735411482,0.19536129,890.83,889.96,0.953]
[1764735411483,0.83985501,890.81,890.16,0.83700991]
[1764735412384,0.19536129,890.83,890.2,0.83700991]
[1764735413285,0.19536129,890.83,890.04,1.12214372]
[1764735413486,0.19536129,890.83,890.2,0.83795449]
[1764735414386,0.19536129,890.83,890.26,0.83795449]
[1764735414787,0.19536129,890.83,890.28,0.83795449]
[1764735415182,0.19536129,890.83,890.29,0.83795449]
[1764735415488,8.48447133,890.85,890.34,0.83795449]
[1764735415682,0.19537445,890.7,890.33,0.83795449]
[1764735417381,0.19537445,890.7,890.32,0.83795449]
[1764735417981,0.19537445,890.7,890.34,0.83795449]
[1764735418183,0.19537445,890.7,890.33,0.83795449]
[1764735418786,0.19537445,890.7,890.32,0.83795449]
[1764735421388,0.19537445,890.7,890.31,0.83795449]
[1764735423387,0.19537445,890.7,890.15,1.12214372]
[1764735423388,0.19537445,890.7,890.3,0.83795449]
[1764735424488,0.19537445,890.7,890.25,0.83795449]
[1764735424691,0.19537445,890.7,890.1,0.83795449]
[1764735425291,0.19537445,890.7,890.11,0.83795449]
[1764735425887,0.19537445,890.7,890.12,0.83795449]
[1764735426792,0.19537445,890.7,890.13,0.83795449]
[1764735427596,0.19537445,890.7,890.16,0.83795449]
[1764735428491,0.19537445,890.7,889.52,1.077]
[1764735428492,0.19537445,890.7,890.23,0.83795449]
[1764735433096,0.19537445,890.7,890.24,0.83795449]
[1764735433300,0.19537445,890.7,890.32,0.83795449]
[1764735434196,0.84071649,891.19,890.41,0.83795449]
[1764735434400,0.19534155,890.87,890.42,0.83795449]
[1764735434600,0.84071649,891.2,890.42,0.83795449]
[1764735434797,0.1953284,890.87,890.42,0.83795449]
[1764735434998,0.84071649,891.2,890.42,0.83795449]
[1764735435502,0.84071649,891.27,890.46,0.83795449]
[1764735436200,0.84071649,891.27,890.45,0.83795449]
[1764735436400,0.19532237,891.07,890.45,0.83795449]
[1764735437504,0.19532237,891.07,890.44,0.83795449]
[1764735439405,0.19532237,891.07,890.43,0.83795449]
[1764735441401,0.19532237,891.07,890.42,0.83795449]
[1764735442402,0.19532237,891.07,890.41,0.83795449]
[1764735442814,0.19532237,891.07,890.25,1.12214372]
[1764735443004,0.19532237,891.07,890.41,0.83436223]
[1764735444009,0.19532237,891.07,890.4,0.83436223]
[1764735445212,0.19532237,891.07,890.39,0.83436223]
[1764735446216,0.19532237,891.07,890.37,0.83436223]
[1764735446517,0.19532237,891.07,890.31,0.83436223]
[1764735449014,0.83774297,891.29,890.31,0.83436223]
[1764735451420,0.83774297,891.3,890.31,0.83436223]
[1764735451622,0.83774297,891.31,890.31,0.83436223]
[1764735453621,0.83774297,891.3,890.3,0.83436223]
[1764735453821,0.83774297,891.27,890.28,0.83436223]
[1764735454020,67.77596391,891.61,889.81,1.165]
[1764735454021,0.83774297,891.26,890.26,0.83436223]
[1764735455521,0.83774297,891.16,890.16,0.83436223]
[1764735455726,0.83774297,891.17,890.17,0.83436223]
[1764735455921,0.83774297,891.23,890.24,0.83436223]
[1764735458226,0.83774297,891.22,890.23,0.83436223]
[1764735458426,0.83774297,891.22,890.24,0.83436223]
[1764735458626,0.83774297,891.21,890.23,0.83436223]
[1764735458827,67.77596391,891.61,890.24,0.83436223]
[1764735458828,0.83774297,891.22,890.24,0.83436223]
[1764735459321,0.83774297,891.21,890.24,0.83436223]
[1764735459525,0.19535855,890.98,890.24,0.83436223]
[1764735461329,0.19535855,890.98,890.25,0.83436223]
[1764735461629,0.19535855,890.98,890.2,0.83436223]
[1764735461829,0.19535855,890.98,890.19,0.83436223]
[1764735462224,0.19535855,890.98,890.16,0.83436223]
[1764735462525,0.19535855,890.98,890.17,0.83436223]
[1764735463425,0.19535855,890.98,890.18,0.83436223]
[1764735465429,0.19535855,890.98,890.19,0.83436223]
[1764735466226,0.19535855,890.98,890.21,0.83436223]
[1764735466426,0.19535855,890.98,890.22,0.83436223]
[1764735466631,0.19535855,890.98,890.35,0.83436223]
[1764735468332,0.19535855,890.98,890.36,0.83436223]
[1764735469332,0.19535855,890.98,890.37,0.83436223]
[1764735470429,0.19535855,890.98,890.38,0.83436223]
[1764735471132,0.19535855,890.98,890.4,0.83436223]
[1764735471334,0.19535855,890.98,890.48,0.83436223]
[1764735480941,0.19535855,890.98,890.47,0.83436223]
[1764735481138,0.19535855,890.98,890.48,0.83436223]
[1764735481838,0.19535855,890.98,890.47,0.83436223]
[1764735484745,0.19535855,890.98,890.48,0.83436223]
[1764735485040,0.19535855,890.98,890.47,0.83436223]
[1764735485245,0.19535855,890.98,890.48,0.83436223]
[1764735486344,0.19535855,890.98,890.49,0.83436223]
[1764735487345,0.19535855,890.98,890.5,0.83623082]
[1764735488239,0.19535855,890.98,890.51,0.83623082]
[1764735489445,0.19535855,890.98,890.52,0.83623082]
[1764735491241,0.19535855,890.98,890.53,0.83623082]
[1764735491946,0.19535855,890.98,890.62,0.83623082]
[1764735492247,0.19535855,890.98,890.61,0.83623082]
[1764735494348,0.19535855,890.98,890.59,0.83623082]
[1764735494644,0.19535855,890.98,890.54,0.83623082]
[1764735495047,0.19535855,890.98,890.52,0.83623082]
[1764735497048,0.19535855,890.98,890.53,0.83623082]
[1764735502251,0.19535855,890.98,890.54,1.245]
[1764735506853,0.19535855,890.98,890.54,2.08123082]
[1764735507347,0.19535855,890.98,890.54,1.245]
[1764735508153,0.19535855,890.98,890.55,0.83623082]
[1764735510353,0.19535855,890.98,890.54,2.08123082]
[1764735511251,0.19535855,890.98,890.55,0.83623082]
[1764735511554,0.19535855,890.98,890.54,2.08123082]
[1764735513254,0.19535855,890.98,890.55,1.069]
[1764735514656,0.19535855,890.98,890.56,0.83623082]
[1764735514860,0.19535855,890.98,890.59,0.83623082]
[1764735515058,0.19535855,890.98,890.58,0.83623082]
[1764735516262,0.19535855,890.98,890.59,0.83623082]
[1764735518465,0.19535855,890.98,890.55,1.069]
[1764735518466,0.19535855,890.98,890.6,0.83623082]
[1764735519267,0.19535855,890.98,890.59,0.83623082]
[1764735520163,0.19535855,890.98,890.64,0.83623082]
[1764735521468,0.19535855,890.98,890.65,0.83623082]
[1764735521670,0.19535855,890.98,890.64,0.83623082]
[1764735522364,0.19535855,890.98,890.65,0.83623082]
[1764735522562,0.19535855,890.98,890.78,0.83623082]
[1764735525870,0.19535855,890.98,890.79,0.83623082]
[1764735526068,0.19535855,890.98,890.78,0.83623082]
[1764735526770,0.19535855,890.98,890.79,0.83623082]
[1764735527069,0.19535855,890.98,890.78,0.83623082]
[1764735528271,0.83938499,891.49,890.78,0.83623082]
[1764735528472,0.19525661,891.21,890.85,0.83623082]
[1764735528672,0.83938499,891.55,890.85,0.83623082]
[1764735529069,0.19524839,891.21,890.85,0.83623082]
[1764735529374,0.83938499,891.57,890.84,0.83623082]
[1764735529774,0.83938499,891.75,891.02,0.83623082]
[1764735529974,2.80054243,892.71,891.03,0.83623082]
[1764735529975,0.83938499,891.76,891.03,0.83623082]
[1764735530175,0.83938499,891.75,891.03,0.83623082]
[1764735530476,0.19519692,891.58,891.11,0.83623082]
[1764735531276,0.19519692,891.58,891.07,0.83623082]
[1764735531878,0.19519692,891.58,891.12,0.83623082]
[1764735532277,0.19519692,891.58,890.67,1.141]
[1764735532278,0.19519692,891.58,891.1,0.83623082]
[1764735532477,0.19519692,891.58,891.11,0.83623082]
[1764735532674,0.19519692,891.58,891.12,0.83623082]
[1764735532879,0.19519692,891.58,891.11,0.83623082]
[1764735533280,1.12133249,892.18,890.67,1.141]
[1764735533281,0.83938499,892.05,891.08,0.83623082]
[1764735533479,0.19515368,891.71,891.1,0.83623082]
[1764735533779,0.83938499,892.07,891.1,0.83623082]
[1764735533974,0.19515149,891.71,891.14,0.83623082]
[1764735534177,0.83938499,892.1,891.13,0.83623082]
[1764735534376,0.83938499,892.13,891.1,0.83623082]
[1764735535180,0.83938499,892.14,891.11,0.83623082]
[1764735535380,0.1951504,891.88,891.14,0.83623082]
[1764735536280,0.1951504,891.88,891.11,0.83623082]
[1764735536977,0.1951504,891.88,891.12,0.83623082]
[1764735537381,0.1951504,891.88,891.1,0.83623082]
[1764735537876,0.1951504,891.88,891.14,0.83623082]
[1764735538081,0.1951504,891.88,891.17,0.83623082]
[1764735538282,0.1951504,891.88,891.14,0.83623082]
[1764735538482,0.1951504,891.88,891.23,0.83623082]
[1764735539278,0.1951504,891.88,891.25,0.83623082]
[1764735540879,0.1951504,891.88,891.24,0.83623082]
[1764735541182,0.1951504,891.88,891.22,0.83623082]
[1764735541382,0.1951504,891.88,891.28,0.83623082]
[1764735542181,0.1951504,891.88,891.12,1.12214372]
[1764735542182,0.1951504,891.88,891.26,0.83623082]
[1764735542884,0.1951504,891.88,891.27,0.83623082]
[1764735543283,0.1951504,891.88,891.24,0.83623082]
[1764735543482,0.1951504,891.88,891.25,0.83623082]
[1764735544181,0.1951504,891.88,891.24,0.83623082]
[1764735544380,0.1951504,891.88,891.23,0.83623082]
[1764735545086,0.1951504,891.88,891.22,0.83623082]
[1764735545385,0.1951504,891.88,891.21,0.83623082]
[1764735545584,0.1951504,891.88,891.23,1.059]
[1764735554989,8.27390198,892.55,891.23,1.059]
[1764735555187,0.19508312,892.03,891.23,1.059]
[1764735555491,8.27390198,892.55,891.23,1.059]
[1764735555692,0.19508312,892.03,891.23,1.059]
[1764735555990,8.27390198,892.55,891.23,1.059]
[1764735557089,0.19509624,892.23,891.23,1.059]
[1764735565694,0.19509624,892.23,891.24,1.142]
[1764735586608,0.83938499,892.16,891.24,1.142]
[1764735587108,0.83938499,892.14,891.24,1.142]
[1764735587313,0.83938499,892.11,891.24,1.142]
[1764735588313,0.83938499,892.08,891.24,1.142]
[1764735588512,0.83938499,892.07,891.24,1.142]
[1764735589215,0.83938499,892.04,891.24,1.142]
[1764735590317,0.83938499,892.03,891.24,1.142]
[1764735590918,0.83938499,891.92,891.24,1.142]
[1764735591117,0.83938499,891.93,891.24,1.142]
[1764735591316,0.83938499,891.93,891.25,1.214]
[1764735592115,0.83938499,891.94,891.25,1.214]
[1764735592316,0.83938499,891.93,891.25,1.214]
[1764735593116,0.83938499,891.94,891.25,1.214]
[1764735594121,0.83938499,891.95,891.25,1.214]
[1764735594322,0.83938499,891.94,891.25,1.214]
[1764735594622,0.83938499,891.98,891.25,1.214]
[1764735596223,0.83938499,891.99,891.25,1.214]
[1764735597126,0.83938499,892.0,891.25,1.214]
[1764735598230,0.83938499,891.98,891.25,1.214]
[1764735599223,0.83938499,891.99,891.25,1.214]
[1764735600829,0.83938499,891.98,891.25,1.214]
[1764735601126,0.83938499,891.95,891.25,1.214]
[1764735601430,0.83938499,891.93,891.25,1.214]
[1764735601730,0.83938499,891.83,891.25,1.214]
[1764735601931,0.83938499,891.82,891.25,1.214]
[1764735602131,0.83938499,891.77,891.25,1.214]
[1764735602430,0.83938499,891.78,891.25,1.214]
[1764735603131,0.83938499,891.79,891.25,1.214]
[1764735603330,0.83938499,891.82,891.25,1.214]
[1764735604229,0.83938499,891.83,891.25,1.214]
[1764735604929,0.83938499,891.82,891.25,1.214]
[1764735605127,0.83938499,891.83,891.25,1.214]
[1764735606326,0.83938499,891.84,891.25,1.214]
[1764735607634,0.83480366,891.84,891.25,1.214]
[1764735608128,0.83480366,891.85,891.25,1.214]
[1764735609033,0.83480366,891.84,891.25,1.214]
[1764735609231,0.83480366,891.75,891.25,1.214]
[1764735610232,0.83480366,891.76,891.25,1.214]
[1764735611334,0.83480366,891.78,891.25,1.214]
[1764735613234,0.83480366,891.79,891.25,1.214]
[1764735613933,0.83480366,891.81,891.25,1.214]
[1764735614134,0.83480366,891.82,891.25,1.214]
[1764735614332,0.83480366,891.83,891.25,1.214]
[1764735614537,0.83480366,891.82,891.25,1.214]
[1764735615138,0.83480366,891.83,891.25,1.214]
[1764735616037,0.83480366,891.88,891.25,1.214]
[1764735616241,0.83480366,891.89,891.25,1.214]
[1764735617540,0.19521225,891.74,891.25,1.214]
[1764735623543,0.19521225,891.74,890.54,0.83095217]
[1764735623944,0.19521225,891.74,890.55,1.066]
[1764735624144,0.19521225,891.74,890.55,1.89695217]
[1764735625143,0.19521225,891.74,890.56,0.856]
[1764735625339,0.19521225,891.74,890.6,0.83095217]
[1764735626345,0.19521225,891.74,890.61,0.83095217]
[1764735627241,0.83480366,891.97,890.61,0.83095217]
[1764735627445,0.1952232,891.46,890.61,0.83095217]
[1764735627646,0.83480366,891.97,890.61,0.83095217]
[1764735628147,0.83480366,891.96,890.62,0.83095217]
[1764735628346,0.83480366,891.95,890.61,0.83095217]
[1764735628846,0.1952232,891.62,890.61,0.83095217]
[1764735629145,0.1952232,891.62,890.62,0.83095217]
[1764735630144,0.1952232,891.62,890.63,0.83095217]
[1764735631243,0.1952232,891.62,890.65,0.83095217]
[1764735632142,0.1952232,891.62,890.66,0.83095217]
[1764735633146,0.1952232,891.62,890.67,0.83095217]
[1764735634247,0.1952232,891.62,890.69,0.83095217]
[1764735634747,0.1952232,891.62,890.7,0.83095217]
[1764735635143,0.1952232,891.62,890.71,0.83095217]
[1764735636144,0.1952232,891.62,890.73,0.83095217]
[1764735637251,0.1952232,891.62,890.75,0.83095217]
[1764735639254,0.1952232,891.62,890.76,0.83095217]
[1764735640355,0.1952232,891.62,890.77,0.83095217]
[1764735641355,0.1952232,891.62,890.56,0.856]
[1764735641356,0.1952232,891.62,890.79,0.83095217]
[1764735641856,0.1952232,891.62,890.77,0.83095217]
[1764735642257,0.1952232,891.62,890.78,0.83095217]
[1764735642658,0.1952232,891.62,890.76,0.83095217]
[1764735642857,0.1952232,891.62,890.75,0.83095217]
[1764735643153,0.1952232,891.62,890.76,0.83095217]
[1764735644160,0.1952232,891.62,890.78,0.83095217]
[1764735645161,0.1952232,891.62,890.8,0.83095217]
[1764735646159,0.1952232,891.62,890.56,0.856]
[1764735646160,0.1952232,891.62,890.81,0.83095217]
[1764735647265,0.1952232,891.62,890.82,0.83095217]
[1764735648163,0.1952232,891.62,890.56,0.856]
[1764735648164,0.1952232,891.62,890.83,0.83095217]
[1764735648659,0.1952232,891.62,890.82,0.83095217]
[1764735649163,0.83480366,891.58,890.77,0.83095217]
[1764735650260,0.83480366,891.57,890.78,0.83095217]
[1764735651364,0.83480366,891.51,890.73,0.83095217]
[1764735652165,0.83480366,891.5,890.72,0.83095217]
[1764735652565,0.83480366,891.52,890.74,0.83095217]
[1764735652765,1.03002686,891.62,890.84,0.83095217]
[1764735652963,0.1952232,891.62,890.88,0.83095217]
[1764735653167,0.1952232,891.62,890.89,0.83095217]
[1764735653771,0.1952232,891.62,890.96,0.83095217]
[1764735654067,0.1952232,891.62,890.8,1.12214372]
[1764735654068,0.1952232,891.62,890.98,0.83095217]
[1764735654863,0.1952232,891.62,890.97,1.69795217]
[1764735655164,0.1952232,891.62,890.98,0.83095217]
[1764735657068,0.1952232,891.62,890.99,0.83095217]
[1764735658078,0.1952232,891.62,891.04,0.83095217]
[1764735658478,0.1952232,891.62,891.12,0.83095217]
[1764735660479,0.1952232,891.62,891.11,0.83095217]
[1764735660778,0.1952232,891.62,891.13,1.124]
[1764735668786,0.1952232,891.62,891.13,1.95495217]
[1764735669085,0.1952232,891.62,891.15,0.83095217]
[1764735670087,0.1952232,891.62,891.14,0.83095217]
[1764735670888,0.1952232,891.62,891.15,0.83095217]
[1764735671287,0.1952232,891.62,891.14,0.83095217]
[1764735673393,0.1952232,891.62,891.13,1.95495217]
[1764735673593,0.1952232,891.62,891.13,1.124]
[1764735678196,0.1952232,891.62,891.13,1.95495217]
[1764735680798,0.1952232,891.62,891.14,0.83095217]
[1764735681094,0.1952232,891.62,891.21,0.83095217]
[1764735682293,0.1952232,891.62,891.13,1.124]
[1764735682294,0.1952232,891.62,891.2,0.83095217]
[1764735685395,0.1952232,891.62,891.19,0.83095217]